fUST/lending_fUST_20260421
["ID","MTS","AMOUNT","RATE_DAILY","PERIOD"]
[420950153,1776785447626,-1200.0,0.00019096,2]
[420950154,1776785447635,-1200.0,0.00019096,2]
[420950155,1776785447644,-1122.0,0.00019096,2]
[420950156,1776785447653,-280.2771496,0.00019098,7]
[420950157,1776785447663,-280.2771496,0.00019098,7]
[420950158,1776785447673,-277.15,0.000191,2]
[420950159,1776785447683,-500.0,0.0001913,30]
[420950160,1776785447692,-500.0,0.0001913,30]
[420950161,1776785447702,-500.0,0.0001913,30]
[420950162,1776785447712,-688.1577328,0.0001913,30]
[420950163,1776785447721,-298.1391255,0.0001913,30]
[420950164,1776785447731,-500.0,0.0001913,30]
[420950165,1776785447741,-723.2643993,0.0001913,30]
[420950166,1776785447750,-310.0944243,0.0001913,30]
[420950167,1776785447760,-1570.99047266,0.00019131,2]
[420950168,1776785447770,-170.0,0.00019157,2]
[420950169,1776785447779,-2500.0,0.00019164,2]
[420950170,1776785447788,-2000.0,0.00019168,7]
[420950171,1776785447798,-1209.507,0.00019178,2]
[420950172,1776785447808,-428.6487,0.00019178,2]
[420950173,1776785447817,-428.6487,0.00019178,2]
[420950174,1776785447827,-428.6487,0.00019178,2]
[420950175,1776785447836,-428.65,0.00019178,2]
[420950176,1776785447846,-428.6487,0.00019178,2]
[420950177,1776785447855,-428.65,0.00019178,2]
[420950178,1776785447865,-428.6487,0.00019178,2]
[420950179,1776785447875,-309.0667,0.00019178,2]
[420950180,1776785447884,-428.65,0.00019178,2]
[420950181,1776785447894,-309.0667,0.00019178,2]
[420950182,1776785447903,-428.6487,0.00019178,2]
[420950183,1776785447912,-428.65,0.00019178,2]
[420950184,1776785447921,-428.6487,0.00019178,2]
[420950185,1776785447931,-534.04897103,0.00019178,2]
[420950186,1776785447941,-534.04897103,0.00019178,2]
[420950187,1776785447950,-534.04897103,0.00019178,2]
[420950188,1776785447960,-534.04897103,0.00019178,2]
[420950189,1776785447970,-534.04897103,0.00019178,2]
[420950190,1776785447980,-151.228196,0.00019178,2]
[420950191,1776785447990,-2948.305534,0.00019178,2]
[420950192,1776785448000,-2948.305534,0.00019178,2]
[420950193,1776785448010,-2948.305534,0.00019178,2]
[420950194,1776785448019,-2948.305534,0.00019178,2]
[420950195,1776785448029,-2948.305534,0.00019178,2]
[420950196,1776785448039,-2948.305534,0.00019178,2]
[420950197,1776785448049,-2948.305534,0.00019178,2]
[420950198,1776785448059,-2948.305534,0.00019178,2]
[420950199,1776785448068,-2948.305534,0.00019178,2]
[420950200,1776785448078,-2948.305534,0.00019178,2]
[420950201,1776785448087,-2948.305534,0.00019178,2]
[420950202,1776785448097,-2948.305534,0.00019178,2]
[420950203,1776785448107,-2948.305534,0.00019178,2]
[420950204,1776785448118,-2948.305534,0.00019178,2]
[420950205,1776785448127,-2948.305534,0.00019178,2]
[420950206,1776785448137,-2948.305534,0.00019178,2]
[420950208,1776785448146,-2948.305534,0.00019178,2]
[420950209,1776785448156,-2948.305534,0.00019178,2]
[420950210,1776785448167,-2948.305534,0.00019178,2]
[420950211,1776785448177,-2948.305536,0.00019178,2]
[420950212,1776785448186,-800.0,0.00019178,22]
[420950213,1776785448195,-1140.0,0.00019178,2]
[420950214,1776785448204,-680.63878118,0.00019178,2]
[420950215,1776785448213,-680.63878118,0.00019178,2]
[420950216,1776785448223,-760.0,0.0001918,2]
[420950218,1776785448232,-900.0,0.00019224,2]
[420950219,1776785448242,-900.0,0.00019224,2]
[420950221,1776785448251,-900.0,0.00019224,2]
[420950223,1776785448260,-900.0,0.00019224,2]
[420950224,1776785448270,-900.0,0.00019224,2]
[420950225,1776785448279,-900.0,0.00019224,2]
[420950227,1776785448288,-900.0,0.00019224,2]
[420950228,1776785448297,-866.0,0.00019224,2]
[420950229,1776785448307,-1000.0,0.00019229,2]
[420950230,1776785448316,-1000.0,0.00019229,2]
[420950232,1776785448326,-1000.0,0.00019229,2]
[420950233,1776785448335,-300.0,0.00019233,2]
[420950234,1776785448345,-300.0,0.00019233,2]
[420950235,1776785448354,-300.0,0.00019233,2]
[420950236,1776785448364,-300.0,0.00019233,2]
[420950237,1776785448373,-194.0,0.00019233,2]
[420950238,1776785448382,-1462.75,0.000193,5]
[420950240,1776785448392,-219.11095147,0.00019318,2]
[420950241,1776785448401,-2000.0,0.00019321,2]
[420950242,1776785448592,-300.0,0.00019321,2]
[420950243,1776785448603,-300.0,0.00019321,2]
[420950244,1776785448613,-300.0,0.00019321,2]
[420950245,1776785448623,-300.0,0.00019321,2]
[420950246,1776785448633,-300.0,0.00019321,2]
[420950247,1776785448643,-194.0,0.00019321,2]
[420950248,1776785448653,-250.0,0.00019332,2]
[420950249,1776785448665,-250.0,0.00019332,2]
[420950250,1776785448677,-250.0,0.00019332,2]
[420950251,1776785448686,-250.0,0.00019332,2]
[420950252,1776785448695,-250.0,0.00019332,2]
[420950253,1776785448704,-250.0,0.00019332,2]
[420950254,1776785448714,-2000.0,0.00019335,7]
[420950255,1776785448722,-140528.64,0.000194,7]
[420950256,1776785448732,-1209.507,0.00019452,2]
[420950257,1776785448741,-1258.25,0.00019452,2]
[420950258,1776785448750,-450.0,0.00019452,2]
[420950259,1776785448760,-4500.0,0.00019456,2]
[420950260,1776785448770,-1000.0,0.00019488,2]
[420950261,1776785448779,-1000.0,0.00019488,2]
[420950262,1776785448788,-1000.0,0.00019488,2]
[420950263,1776785448798,-819.0,0.00019488,2]
[420950264,1776785448808,-1002.0,0.000195,2]
[420950265,1776785448817,-20000.0,0.000195,30]
[420950266,1776785448827,-160.0,0.000195,30]
[420950267,1776785448836,-1000.0,0.000195,2]
[420950268,1776785448846,-2000.0,0.00019501,2]
[420950269,1776785448856,-2000.0,0.00019501,7]
[420950270,1776785448866,-428.65,0.00019589,3]
[420950271,1776785448875,-428.65,0.00019589,3]
[420950272,1776785448885,-309.0667,0.00019589,3]
[420950273,1776785448894,-428.65,0.00019589,3]
[420950274,1776785448903,-309.0667,0.00019589,3]
[420950275,1776785448913,-428.65,0.00019589,3]
[420950276,1776785448923,-2000.0,0.00019667,7]
[420950277,1776785448932,-3000.0,0.00019712,2]
[420950278,1776785448942,-1209.507,0.00019726,2]
[420950279,1776785448952,-1140.0,0.00019726,2]
[420950280,1776785448961,-500.0,0.00019773,2]
[420950281,1776785448971,-500.0,0.00019773,2]
[420950282,1776785448980,-167.27896735,0.00019773,2]
[420950283,1776785448989,-500.0,0.00019773,2]
[420950284,1776785448998,-297.80826975,0.00019773,2]
[420950285,1776785449008,-150.0,0.00019773,2]
[420950286,1776785449018,-1000.0,0.00019799,4]
[420950287,1776785449027,-28126.12894837,0.000198,2]
[420950288,1776785449036,-28126.12894834,0.000198,2]
[420950289,1776785449046,-28126.12894834,0.000198,2]
[420950290,1776785449056,-28126.12894834,0.000198,2]
[420950291,1776785449066,-107223.99434138,0.000198,14]
[420950292,1776785449215,-760825.96120181,0.000198,14]
[420950293,1776785449294,-160.0,0.0001446,2]
[420950294,1776785449303,-7396.64169463,0.0001446,2]
[420950295,1776785449315,-226.13085337,0.0001446,2]
[420950296,1776785449324,-2761.50298663,0.000198,14]
[420950297,1776785449335,-1318.24856678,0.000198,14]
[420950298,1776785449346,-69510.69673599,0.000198,14]
[420950299,1776785449405,-5000.0,7.623e-05,2]
[420950300,1776785449415,-5000.0,0.0001446,2]
[420950301,1776785449559,-151.0,0.00014306,2]
[420950302,1776785449568,-7686.96282167,0.0001446,2]
[420950303,1776785487174,500.0,9.424e-05,2]
[420950304,1776785487223,500.0,9.424e-05,2]
[420950305,1776785487280,480.7522205,9.424e-05,2]
[420950306,1776785504594,-164.5280245,9.449e-05,2]
[420950341,1776786230028,250000.0,0.00025426,120]
[420950342,1776786263630,500.0,0.00025426,120]
[420950343,1776786263902,500.0,0.00025426,120]
[420950344,1776786264119,500.0,0.00025426,120]
[420950345,1776786264416,500.0,0.00025426,120]
[420950346,1776786264656,500.0,0.00025426,120]
[420950347,1776786264894,500.0,0.00025426,120]
[420950348,1776786265125,500.0,0.00025426,120]
[420950349,1776786265363,500.0,0.00025426,120]
[420950350,1776786265598,500.0,0.00025426,120]
[420950351,1776786265824,500.0,0.00025426,120]
[420950352,1776786266046,500.0,0.00025426,120]
[420950353,1776786266294,500.0,0.00025426,120]
[420950354,1776786266543,500.0,0.00025426,120]
[420950355,1776786266766,500.0,0.00025426,120]
[420950356,1776786267003,500.0,0.00025426,120]
[420950357,1776786267268,500.0,0.00025426,120]
[420950358,1776786267495,500.0,0.00025426,120]
[420950359,1776786267736,504.59156055,0.00025426,120]
[420950388,1776786632122,-469.2892,8.588e-05,10]
[420950390,1776786632134,-2440.40000002,8.588e-05,10]
[420950405,1776786639230,-2090.31079998,8.588e-05,10]
[420950406,1776786639240,-2683.12314481,8.675e-05,10]
[420950407,1776786639251,-2316.87685519,8.675e-05,10]
[420950408,1776786639261,-3972.92798499,8.763e-05,10]
[420950409,1776786639270,-519.0,8.851e-05,2]
[420950410,1776786639279,-545.0,8.896e-05,2]
[420950411,1776786639288,-237.86078357,8.897e-05,2]
[420950412,1776786639298,-300.0,8.938e-05,2]
[420950413,1776786639307,-300.0,8.939e-05,2]
[420950414,1776786639316,-162.23,9.122e-05,14]
[420950415,1776786639325,-420.0,9.832e-05,2]
[420950416,1776786639334,-209.79629106,0.00010088,2]
[420950417,1776786639343,-1068.69244198,0.0001027,2]
[420950418,1776786639352,-2088.31179658,0.0001037,2]
[420950419,1776786639362,-300.0,0.00010709,2]
[420950420,1776786639371,-300.0,0.00010709,2]
[420950421,1776786639380,-300.0,0.00010709,2]
[420950422,1776786639390,-300.0,0.00010709,2]
[420950423,1776786639399,-300.0,0.00010709,2]
[420950424,1776786639408,-300.0,0.00010709,2]
[420950425,1776786639417,-300.0,0.00010709,2]
[420950426,1776786639426,-300.0,0.00010709,2]
[420950427,1776786639435,-300.0,0.00010709,2]
[420950428,1776786639444,-300.0,0.00010709,2]
[420950429,1776786639454,-300.0,0.00010709,2]
[420950430,1776786639463,-300.0,0.00010709,2]
[420950431,1776786639472,-300.0,0.00010709,2]
[420950432,1776786639482,-300.0,0.00010709,2]
[420950433,1776786639492,-300.0,0.00010709,2]
[420950434,1776786639502,-2819.0187982,0.0001077,2]
[420950435,1776786639511,-587.0,0.00010815,2]
[420950437,1776786639520,-280.67572461,0.00010897,2]
[420950439,1776786639529,-250.0,0.00011579,2]
[420950441,1776786639538,-3107.93115117,0.00011727,2]
[420950443,1776786639548,-159.351312,0.00011841,2]
[420950445,1776786639556,-823.0,0.00011896,2]
[420950447,1776786639565,-2210.0,0.00012408,2]
[420950449,1776786639574,-184.0,0.00012408,2]
[420950451,1776786639583,-441.0,0.00012408,2]
[420950452,1776786639592,-152.907,0.00012408,2]
[420950453,1776786639601,-151.0,0.00012476,2]
[420950454,1776786639610,-500.0,0.00012614,2]
[420950455,1776786639619,-500.0,0.00012614,2]
[420950456,1776786639629,-406.89741716,0.00012675,2]
[420950457,1776786639638,-3146.82917151,0.00012688,2]
[420950458,1776786639647,-26998.99620651,0.0001278,2]
[420950459,1776786639658,-3992.27447946,0.0001278,2]
[420950460,1776786639670,-1538.17840722,0.0001278,2]
[420950461,1776786639684,-493925.02967881,0.0001278,2]
[420950462,1776786639693,-323.49066566,0.00012897,2]
[420950463,1776786639702,-236.41428789,0.000129,2]
[420950464,1776786639712,-1307.44607784,0.00012921,2]
[420950465,1776786639721,-355.34248703,0.00012973,2]
[420950466,1776786639731,-164.5280245,0.00012977,2]
[420950467,1776786639740,-500.0,0.00012978,2]
[420950468,1776786639749,-503.76041573,0.00012978,2]
[420950469,1776786639759,-500.0,0.00012978,2]
[420950470,1776786639769,-503.76041573,0.00012978,2]
[420950471,1776786639778,-481.85478419,0.00012978,2]
[420950472,1776786639787,-503.76041573,0.00012978,2]
[420950473,1776786639796,-500.0,0.00012978,2]
[420950474,1776786639805,-503.76041573,0.00012978,2]
[420950475,1776786639814,-503.76041573,0.00012978,2]
[420950476,1776786639823,-503.76041573,0.00012978,2]
[420950477,1776786639832,-500.0,0.00012978,2]
[420950478,1776786639841,-503.76041573,0.00012978,2]
[420950479,1776786639850,-503.76041573,0.00012978,2]
[420950480,1776786639859,-649.59003659,0.00012978,2]
[420950481,1776786639868,-503.76041573,0.00012978,2]
[420950482,1776786639878,-503.76041573,0.00012978,2]
[420950483,1776786639887,-503.76041573,0.00012978,2]
[420950484,1776786639897,-503.76041573,0.00012978,2]
[420950485,1776786639906,-503.76041573,0.00012978,2]
[420950486,1776786639915,-503.76041573,0.00012978,2]
[420950487,1776786639925,-503.76041573,0.00012978,2]
[420950489,1776786639934,-503.76041573,0.00012978,2]
[420950490,1776786639943,-503.76041573,0.00012978,2]
[420950491,1776786639951,-503.76041573,0.00012978,2]
[420950492,1776786639960,-503.76041573,0.00012978,2]
[420950493,1776786639969,-503.76041573,0.00012978,2]
[420950494,1776786639978,-503.76041573,0.00012978,2]
[420950495,1776786639988,-547.83945209,0.00012978,2]
[420950496,1776786639997,-547.83945209,0.00012978,2]
[420950497,1776786640006,-547.83945209,0.00012978,2]
[420950498,1776786640015,-547.83945209,0.00012978,2]
[420950499,1776786640025,-547.83945209,0.00012978,2]
[420950500,1776786640033,-547.83945209,0.00012978,2]
[420950501,1776786640042,-547.83945209,0.00012978,2]
[420950502,1776786640051,-547.83945209,0.00012978,2]
[420950503,1776786640060,-520057.39887505,0.00012979,2]
[420950504,1776786640069,-160.0,0.00013046,2]
[420950505,1776786640079,-1152.0,0.00013086,2]
[420950506,1776786640088,-159.351312,0.00013087,2]
[420950507,1776786640097,-1099.32500394,0.00013165,2]
[420950508,1776786640106,-235.7412502,0.00013186,2]
[420950509,1776786640116,-2150.738,0.00013237,2]
[420950510,1776786640125,-500.0,0.00013252,2]
[420950511,1776786640134,-600.0,0.00013361,2]
[420950512,1776786640143,-236.41428782,0.00013393,2]
[420950513,1776786640152,-507.63738405,0.00013526,2]
[420950514,1776786640162,-3435.78204229,0.0001365,2]
[420950515,1776786640171,-500.0,0.00013698,2]
[420950516,1776786640180,-500.0,0.00013698,2]
[420950517,1776786640189,-500.0,0.00013698,2]
[420950518,1776786640198,-500.0,0.00013699,2]
[420950519,1776786640207,-1000.0,0.00013699,2]
[420950520,1776786640216,-1000.0,0.00013699,2]
[420950521,1776786640226,-255.0764817,0.00013699,2]
[420950522,1776786640237,-2230.315306,0.00013785,2]
[420950523,1776786640246,-500.0,0.00013925,2]
[420950524,1776786640254,-158.33812405,0.00013925,2]
[420950525,1776786640264,-161.30656242,0.00014,2]
[420950526,1776786640273,-500.0,0.00014117,2]
[420950527,1776786640282,-500.0,0.00014117,2]
[420950529,1776786640291,-500.0,0.00014117,2]
[420950530,1776786640300,-503.76268156,0.00014137,2]
[420950531,1776786640309,-500.0,0.00014137,2]
[420950532,1776786640319,-500.0,0.00014137,2]
[420950533,1776786640328,-500.90952224,0.00014137,2]
[420950534,1776786640338,-158.33239116,0.00014137,2]
[420950535,1776786640347,-2312.83697232,0.00014333,2]
[420950536,1776786640357,-159.351312,0.00014333,2]
[420950537,1776786640366,-600.0,0.00014395,2]
[420950538,1776786640375,-500.0,0.00014425,2]
[420950539,1776786640385,-1000.0,0.00014473,2]
[420950540,1776786640394,-236.41428782,0.00014477,2]
[420950541,1776786640403,-1000.0,0.00014665,2]
[420950542,1776786640413,-1000.0,0.00014665,2]
[420950543,1776786640422,-1000.0,0.00014685,2]
[420950544,1776786640431,-500.0,0.00014685,2]
[420950545,1776786640440,-500.0,0.00014696,2]
[420950546,1776786640449,-720.0,0.00014697,2]
[420950547,1776786640458,-2398.4119403,0.00014881,2]
[420950548,1776786640467,-366.3056067,0.00014897,2]
[420950549,1776786640477,-170.7654321,0.000149,2]
[420950550,1776786640487,-170.7654321,0.000149,2]
[420950551,1776786640496,-170.7654321,0.000149,2]
[420950552,1776786640505,-1000.0,0.00014973,2]
[420950553,1776786640515,-1993.69784352,0.00015,2]
[420950554,1776786640524,-1500.0,0.00015021,2]
[420950555,1776786640534,-475.4637,0.00015068,2]
[420950556,1776786640543,-500.0,0.00015073,2]
[420950557,1776786640552,-500.0,0.00015073,2]
[420950558,1776786640561,-500.0,0.00015073,2]
[420950559,1776786640571,-500.0,0.00015073,2]
[420950560,1776786640587,-500.0,0.00015082,2]
[420950562,1776786640598,-500.0,0.00015082,2]
[420950563,1776786640607,-500.0,0.00015082,2]
[420950564,1776786640617,-500.0,0.00015082,2]
[420950565,1776786640626,-500.0,0.00015082,2]
[420950566,1776786640635,-500.0,0.00015082,2]
[420950567,1776786640644,-500.0,0.00015082,2]
[420950568,1776786640653,-500.0,0.00015082,2]
[420950569,1776786640663,-500.0,0.00015082,2]
[420950570,1776786640674,-500.0,0.00015082,2]
[420950571,1776786640683,-500.0,0.00015082,2]
[420950572,1776786640692,-500.0,0.00015082,2]
[420950574,1776786640701,-500.0,0.00015082,2]
[420950575,1776786640711,-500.0,0.00015082,2]
[420950576,1776786640720,-500.0,0.00015082,2]
[420950577,1776786640729,-525.39894773,0.00015082,2]
[420950578,1776786640738,-8951.21,0.00015083,2]
[420950580,1776786640747,-8951.21,0.00015083,2]
[420950581,1776786640756,-8951.21,0.00015083,2]
[420950583,1776786640764,-8951.21,0.00015083,2]
[420950584,1776786640773,-12395.45,0.00015083,2]
[420950585,1776786640782,-500.0,0.00015173,2]
[420950586,1776786640943,-1993.69784352,0.000152,2]
[420950587,1776786640958,-1500.0,0.00015213,2]
[420950588,1776786640967,-1500.0,0.00015213,2]
[420950589,1776786640976,-1500.0,0.00015233,2]
[420950590,1776786640986,-1993.69784352,0.000153,2]
[420950591,1776786640995,-160.0,0.00015398,2]
[420950592,1776786641004,-3611.528806,0.00015398,2]
[420950593,1776786641013,-7063.057613,0.00015398,2]
[420950594,1776786641022,-989.981,0.00015408,2]
[420950595,1776786641031,-184.0,0.00015408,2]
[420950596,1776786641040,-441.0,0.00015408,2]
[420950597,1776786641049,-2487.15318209,0.00015429,2]
[420950598,1776786641058,-1993.69784352,0.000155,2]
[420950599,1776786641067,-1500.0,0.00015521,2]
[420950600,1776786641076,-236.41428782,0.00015562,2]
[420950601,1776786641085,-4127.55050577,0.00015572,2]
[420950602,1776786641095,-1993.69784352,0.000156,2]
[420950603,1776786641104,-224.77239047,0.00015621,2]
[420950604,1776786641113,-1000.0,0.00015621,2]
[420950605,1776786641123,-156.49861347,0.00015621,2]
[420950606,1776786641132,-1000.0,0.00015621,2]
[420950607,1776786641141,-1000.0,0.00015721,2]
[420950608,1776786641150,-160.0,0.00015778,2]
[420950609,1776786641160,-5255.737278,0.00015778,2]
[420950610,1776786641169,-10351.474557,0.00015778,2]
[420950611,1776786641179,-500.0,0.00015781,2]
[420950612,1776786641188,-1993.69784352,0.000158,2]
[420950613,1776786641197,-1993.69784352,0.000159,2]
[420950614,1776786641206,-1993.69784352,0.000161,2]
[420950615,1776786641215,-283.08,0.00016116,2]
[420950616,1776786641224,-283.08,0.00016116,2]
[420950617,1776786641234,-283.08,0.00016116,2]
[420950618,1776786641243,-283.08,0.00016116,2]
[420950619,1776786641252,-283.08,0.00016116,2]
[420950620,1776786641261,-283.08,0.00016116,2]
[420950621,1776786641270,-283.08,0.00016116,2]
[420950622,1776786641279,-283.08,0.00016116,2]
[420950623,1776786641289,-283.08,0.00016116,2]
[420950624,1776786641298,-283.07635133,0.00016116,2]
[420950625,1776786641307,-864.0,0.00016167,2]
[420950626,1776786641317,-7387.218014,0.00016168,2]
[420950627,1776786641326,-1108.96768798,0.00016168,2]
[420950628,1776786641335,-1500.0,0.00016168,2]
[420950629,1776786641344,-1993.69784352,0.000162,2]
[420950630,1776786641353,-1500.0,0.00016268,2]
[420950631,1776786641362,-203.0,0.00016274,3]
[420950632,1776786641371,-1993.69784352,0.000164,2]
[420950633,1776786641381,-500.0,0.00016438,2]
[420950634,1776786641390,-500.0,0.00016438,2]
[420950635,1776786641399,-608.67436619,0.00016438,2]
[420950636,1776786641408,-365.38796427,0.00016438,2]
[420950637,1776786641417,-1140.0,0.00016438,2]
[420950638,1776786641426,-4763.97388865,0.00016533,2]
[420950639,1776786641436,-10750.371706,0.00016567,2]
[420950640,1776786641444,-236.41428782,0.00016646,2]
[420950641,1776786641453,-2000.0,0.00016716,2]
[420950642,1776786641462,-409.12054774,0.00016897,2]
[420950643,1776786641471,-1140.0,0.00016986,2]
[420950644,1776786641481,-607.553,0.00017534,2]
[420950645,1776786641491,-1140.0,0.00017534,2]
[420950646,1776786641500,-3841.353367,0.00017708,2]
[420950647,1776786641510,-236.41428782,0.00017731,2]
[420950648,1776786641520,-1000.0,0.00017783,2]
[420950649,1776786641529,-220.0,0.0001782,2]
[420950650,1776786641539,-230.25,0.00017858,2]
[420950651,1776786641548,-174.0,0.00017918,3]
[420950652,1776786641557,-1140.0,0.00018082,2]
[420950653,1776786641567,-5590.193287,0.00018145,2]
[420950654,1776786641576,-500.0,0.00018344,2]
[420950655,1776786641585,-184.0,0.00018408,2]
[420950656,1776786641595,-441.0,0.00018408,2]
[420950657,1776786641604,-475.4637,0.00018493,2]
[420950658,1776786641613,-1140.0,0.0001863,2]
[420950659,1776786641622,-236.41428782,0.00018815,2]
[420950660,1776786641631,-451.93548879,0.00018897,2]
[420950661,1776786641640,-155.0472122,0.00019049,30]
[420950662,1776786641649,-428.6487,0.00019178,2]
[420950663,1776786641658,-428.6487,0.00019178,2]
[420950664,1776786641667,-428.6487,0.00019178,2]
[420950665,1776786641676,-428.6487,0.00019178,2]
[420950666,1776786641685,-428.6487,0.00019178,2]
[420950667,1776786641694,-428.6487,0.00019178,2]
[420950668,1776786641703,-428.6487,0.00019178,2]
[420950669,1776786641713,-428.6487,0.00019178,2]
[420950670,1776786641722,-1140.0,0.00019178,2]
[420950671,1776786641731,-557.45831032,0.00019229,2]
[420950672,1776786641740,-2229.83324126,0.00019229,2]
[420950673,1776786641750,-5012.10766805,0.00019229,2]
[420950674,1776786641759,-1845.24311616,0.00019404,2]
[420950675,1776786641769,-323.0,0.00019543,2]
[420950676,1776786641778,-177.0,0.00019562,3]
[420950677,1776786641787,-1000.0,0.00019562,2]
[420950678,1776786641796,-244.0,0.00019562,2]
[420950679,1776786641806,-300.0,0.00019589,3]
[420950680,1776786641815,-3375.075748,0.00019609,2]
[420950681,1776786641824,-990.68007844,0.00019698,7]
[420950682,1776786641833,-398.0,0.00019725,2]
[420950683,1776786641842,-1140.0,0.00019726,2]
[420950684,1776786641852,-500.0,0.00019773,2]
[420950685,1776786641862,-500.0,0.00019773,2]
[420950686,1776786641871,-500.0,0.00019773,2]
[420950687,1776786641880,-162.380719,0.00019798,4]
[420950688,1776786641890,-445.202766,0.00019798,4]
[420950689,1776786641899,-162.380719,0.00019798,4]
[420950690,1776786641908,-537.6845,0.00019798,4]
[420950691,1776786641917,-151.0,0.00019798,4]
[420950692,1776786641927,-500.0,0.00019798,4]
[420950693,1776786641935,-168.3888056,0.00019798,4]
[420950694,1776786641944,-461.67526834,0.00019798,4]
[420950695,1776786641954,-168.3888056,0.00019798,4]
[420950696,1776786641963,-151.0,0.00019798,4]
[420950697,1776786641972,-557.5788265,0.00019798,4]
[420950698,1776786641981,-500.0,0.00019798,4]
[420950699,1776786641991,-239.74264416,0.00019798,4]
[420950700,1776786642000,-295.51382046,0.00019798,4]
[420950701,1776786642009,-151.0,0.00019798,4]
[420950702,1776786642019,-500.0,0.00019798,4]
[420950703,1776786642028,-578.20924308,0.00019798,4]
[420950704,1776786642038,-174.52076652,0.00019798,4]
[420950705,1776786642047,-500.0,0.00019798,4]
[420950706,1776786642056,-599.60298507,0.00019798,4]
[420950707,1776786642066,-500.0,0.00019798,4]
[420950708,1776786642076,-621.78829552,0.00019798,4]
[420950709,1776786642085,-500.0,0.00019798,4]
[420950710,1776786642095,-644.79446246,0.00019798,4]
[420950711,1776786642104,-500.0,0.00019798,4]
[420950712,1776786642114,-270.44002376,0.00019798,4]
[420950713,1776786642125,-500.0,0.00019798,4]
[420950714,1776786642135,-500.0,0.00019798,4]
[420950715,1776786642146,-500.0,0.00019798,4]
[420950716,1776786642156,-500.0,0.00019798,4]
[420950717,1776786642165,-500.0,0.00019798,4]
[420950718,1776786642175,-500.0,0.00019798,4]
[420950719,1776786642184,-500.0,0.00019798,4]
[420950720,1776786642194,-500.0,0.00019798,4]
[420950721,1776786642204,-500.0,0.00019798,4]
[420950722,1776786642213,-500.0,0.00019798,4]
[420950723,1776786642223,-500.0,0.00019798,4]
[420950724,1776786642233,-537.6845,0.00019798,4]
[420950725,1776786642242,-557.5788265,0.00019798,4]
[420950726,1776786642251,-578.20924308,0.00019798,4]
[420950727,1776786642260,-599.60298507,0.00019798,4]
[420950728,1776786642270,-621.78829552,0.00019798,4]
[420950729,1776786642279,-154027.24834486,0.000198,14]
[420950730,1776786642393,-2505.66351195,0.000198,14]
[420950731,1776786642421,-2208.71175107,0.000198,14]
[420950732,1776786642432,-6775.07433426,0.000198,14]
[420950733,1776786642443,-317.62254749,0.000198,14]
[420950734,1776786642455,-25623.70019611,0.000198,14]
[420950735,1776786642466,-10854.22642804,0.000198,14]
[420950736,1776786642478,-975.0,0.000198,14]
[420950737,1776786642489,-558.0,0.000198,14]
[420950738,1776786642500,-37817.00000001,0.000198,14]
[420950742,1776786642625,-710.66587433,0.000198,14]
[420950751,1776786643364,-15810.53395227,0.000198,14]
[420950752,1776786643376,-6926.84326751,0.000198,14]
[420950753,1776786643388,-6035.67688669,0.000198,14]
[420950754,1776786643474,-11317.58831437,0.000198,14]
[420950755,1776786643486,-3713.26041875,0.000198,14]
[420950756,1776786643497,-1271.85113623,0.000198,14]
[420950757,1776786643508,-403.79477644,0.000198,14]
[420950758,1776786643530,-4368.23875983,0.000198,14]
[420950759,1776786643542,-1909.34647797,0.000198,14]
[420950765,1776786646240,-1229.151375,0.00019,2]
[420950766,1776786646251,-28.27498163,0.00019404,2]